[Event "Titled Tuesday Blitz September 27 Early 2022"]
[White "Svane, Rasmus"]
[Black "Prraneeth Vuppala"]
[WhiteFideId "4657101"]
[BlackFideId "46622373"]
[WhiteElo "2674"]
[BlackElo "2073"]
[Result "1-0"]
[Round "02"]
[TimeControl "180+1"]
[Date "2022.09.27"]
[WhiteClock "0:00:10"]
[BlackClock "0:00:09"]

1. Nf3 {[%clk 0:03:00]}  d5 {[%clk 0:02:57]} 2. g3 {[%clk 0:03:01]}  c6 {[%clk 0:02:55]} 3. Bg2 {[%clk 0:03:01]}  Bg4 {[%clk 0:02:54]} 4. O-O {[%clk 0:03:01]}  Nd7 {[%clk 0:02:53]} 5. h3 {[%clk 0:03:01]}  Bxf3 {[%clk 0:02:52]} 6. Bxf3 {[%clk 0:03:02]}  e5 {[%clk 0:02:53]} 7. d3 {[%clk 0:03:02]}  Bd6 {[%clk 0:02:52]} 8. e4 {[%clk 0:03:02]}  Ne7 {[%clk 0:02:48]} 9. Nc3 {[%clk 0:03:00]}  d4 {[%clk 0:02:41]} 10. Nb1 {[%clk 0:03:00]}  O-O {[%clk 0:02:39]} 11. a4 {[%clk 0:02:57]}  h6 {[%clk 0:02:34]} 12. Bg2 {[%clk 0:02:53]}  a6 {[%clk 0:02:18]} 13. a5 {[%clk 0:02:38]}  Bb4 {[%clk 0:02:12]} 14. Bd2 {[%clk 0:02:37]}  Bxd2 {[%clk 0:02:12]} 15. Nxd2 {[%clk 0:02:38]}  c5 {[%clk 0:02:03]} 16. f4 {[%clk 0:02:38]}  Nc6 {[%clk 0:01:57]} 17. Nc4 {[%clk 0:02:37]}  b5 {[%clk 0:01:39]} 18. axb6 {[%clk 0:02:36]}  Nxb6 {[%clk 0:01:40]} 19. Nxe5 {[%clk 0:01:44]}  Nxe5 {[%clk 0:01:38]} 20. fxe5 {[%clk 0:01:45]}  Nd7 {[%clk 0:01:33]} 21. e6 {[%clk 0:01:42]}  fxe6 {[%clk 0:01:32]} 22. e5 {[%clk 0:01:11]}  Ra7 {[%clk 0:01:10]} 23. Qg4 {[%clk 0:01:06]}  Qe7 {[%clk 0:01:02]} 24. Rxf8+ {[%clk 0:00:59]}  Nxf8 {[%clk 0:01:03]} 25. Be4 {[%clk 0:00:57]}  Qc7 {[%clk 0:00:56]} 26. Qf4 {[%clk 0:00:51]}  Qe7 {[%clk 0:00:50]} 27. h4 {[%clk 0:00:45]}  a5 {[%clk 0:00:47]} 28. b3 {[%clk 0:00:45]}  Qe8 {[%clk 0:00:46]} 29. Qd2 {[%clk 0:00:42]}  a4 {[%clk 0:00:43]} 30. bxa4 {[%clk 0:00:24]}  Rxa4 {[%clk 0:00:44]} 31. Rf1 {[%clk 0:00:24]}  Ra7 {[%clk 0:00:42]} 32. Kh2 {[%clk 0:00:24]}  Rf7 {[%clk 0:00:40]} 33. Rxf7 {[%clk 0:00:17]}  Qxf7 {[%clk 0:00:41]} 34. Kg2 {[%clk 0:00:18]}  Nd7 {[%clk 0:00:41]} 35. Qa5 {[%clk 0:00:16]}  g6 {[%clk 0:00:35]} 36. Qc7 {[%clk 0:00:12]}  Kg7 {[%clk 0:00:29]} 37. Qd6 {[%clk 0:00:12]}  g5 {[%clk 0:00:17]} 38. hxg5 {[%clk 0:00:12]}  hxg5 {[%clk 0:00:18]} 39. Bc6 {[%clk 0:00:12]}  Nf8 {[%clk 0:00:15]} 40. Qxc5 {[%clk 0:00:13]}  Ng6 {[%clk 0:00:13]} 41. Qxd4 {[%clk 0:00:13]}  Qc7 {[%clk 0:00:13]} 42. Qd6 {[%clk 0:00:14]}  Qb6 {[%clk 0:00:12]} 43. Qxe6 {[%clk 0:00:13]}  Qe3 {[%clk 0:00:11]} 44. Qf6+ {[%clk 0:00:13]}  Kh6 {[%clk 0:00:11]} 45. Be4 {[%clk 0:00:09]}  Qe2+ {[%clk 0:00:11]} 46. Qf2 {[%clk 0:00:10]}  Qd1 {[%clk 0:00:09]} 47. Bxg6 {[%clk 0:00:10]}  Kxg6 {[%clk 0:00:09]} 48. Qf6+ {[%clk 0:00:09]}  Kh5 {[%clk 0:00:10]} 49. Qf3+ {[%clk 0:00:10]}  Qxf3+ {[%clk 0:00:09]} 50. Kxf3 {[%clk 0:00:10]} 1-0


[Site "https://www.chess.com"]

[Event "Titled Tuesday Blitz September 27 Early 2022"]
[White "Tari, Aryan"]
[Black "Bykov, Egor"]
[WhiteFideId "1510045"]
[BlackFideId "34115290"]
[WhiteElo "2612"]
[BlackElo "2192"]
[Result "0-1"]
[Round "02"]
[TimeControl "180+1"]
[Date "2022.09.27"]
[WhiteClock "0:00:05"]
[BlackClock "0:00:16"]

1. d4 {[%clk 0:03:00]}  Nf6 {[%clk 0:02:59]} 2. Nf3 {[%clk 0:03:01]}  e6 {[%clk 0:02:59]} 3. g3 {[%clk 0:02:55]}  b5 {[%clk 0:02:59]} 4. Bg2 {[%clk 0:02:51]}  Bb7 {[%clk 0:02:59]} 5. O-O {[%clk 0:02:52]}  c5 {[%clk 0:02:57]} 6. c3 {[%clk 0:02:41]}  Be7 {[%clk 0:02:50]} 7. a4 {[%clk 0:02:37]}  cxd4 {[%clk 0:02:41]} 8. axb5 {[%clk 0:02:32]}  dxc3 {[%clk 0:02:38]} 9. bxc3 {[%clk 0:02:33]}  O-O {[%clk 0:02:29]} 10. Nbd2 {[%clk 0:02:10]}  d6 {[%clk 0:02:18]} 11. Nb3 {[%clk 0:02:08]}  a6 {[%clk 0:02:07]} 12. Na5 {[%clk 0:02:07]}  Be4 {[%clk 0:02:02]} 13. Qb3 {[%clk 0:01:19]}  Nbd7 {[%clk 0:01:36]} 14. Nc6 {[%clk 0:01:15]}  Bxc6 {[%clk 0:01:36]} 15. bxc6 {[%clk 0:01:15]}  Nc5 {[%clk 0:01:31]} 16. Qa2 {[%clk 0:01:07]}  e5 {[%clk 0:01:23]} 17. Nh4 {[%clk 0:01:02]}  Qc8 {[%clk 0:01:15]} 18. Be3 {[%clk 0:01:00]}  Nfe4 {[%clk 0:01:03]} 19. Bxe4 {[%clk 0:00:55]}  Nxe4 {[%clk 0:01:02]} 20. Nf5 {[%clk 0:00:55]}  Qxf5 {[%clk 0:01:01]} 21. Qd5 {[%clk 0:00:56]}  Nxc3 {[%clk 0:00:56]} 22. Qc4 {[%clk 0:00:55]}  Nb5 {[%clk 0:00:53]} 23. Bb6 {[%clk 0:00:51]}  Qe6 {[%clk 0:00:52]} 24. Qc2 {[%clk 0:00:43]}  Rfc8 {[%clk 0:00:50]} 25. Rfc1 {[%clk 0:00:41]}  d5 {[%clk 0:00:47]} 26. Ba5 {[%clk 0:00:29]}  Na3 {[%clk 0:00:44]} 27. Qa4 {[%clk 0:00:28]}  Nc4 {[%clk 0:00:44]} 28. c7 {[%clk 0:00:28]}  h5 {[%clk 0:00:31]} 29. e4 {[%clk 0:00:28]}  Nxa5 {[%clk 0:00:31]} 30. Qxa5 {[%clk 0:00:29]}  dxe4 {[%clk 0:00:31]} 31. Rab1 {[%clk 0:00:26]}  Bd6 {[%clk 0:00:28]} 32. Rc6 {[%clk 0:00:25]}  Qe7 {[%clk 0:00:19]} 33. Rbc1 {[%clk 0:00:20]}  h4 {[%clk 0:00:18]} 34. Qd5 {[%clk 0:00:19]}  Ba3 {[%clk 0:00:18]} 35. R1c4 {[%clk 0:00:15]}  hxg3 {[%clk 0:00:19]} 36. hxg3 {[%clk 0:00:15]}  Ra7 {[%clk 0:00:18]} 37. Qa5 {[%clk 0:00:10]}  Bd6 {[%clk 0:00:18]} 38. Qd5 {[%clk 0:00:06]}  Raxc7 {[%clk 0:00:18]} 39. Rxc7 {[%clk 0:00:03]}  Rxc7 {[%clk 0:00:19]} 40. Qa8+ {[%clk 0:00:02]}  Qf8 {[%clk 0:00:16]} 41. Qxe4 {[%clk 0:00:02]}  Rxc4 {[%clk 0:00:16]} 42. Qxc4 {[%clk 0:00:03]}  a5 {[%clk 0:00:17]} 43. Qa6 {[%clk 0:00:03]}  Bb4 {[%clk 0:00:17]} 44. Kg2 {[%clk 0:00:03]}  g6 {[%clk 0:00:17]} 45. g4 {[%clk 0:00:03]}  Qe7 {[%clk 0:00:16]} 46. f3 {[%clk 0:00:03]}  Kg7 {[%clk 0:00:17]} 47. Qc8 {[%clk 0:00:03]}  Qc5 {[%clk 0:00:17]} 48. Qa8 {[%clk 0:00:03]}  Qc2+ {[%clk 0:00:16]} 49. Kh3 {[%clk 0:00:04]}  a4 {[%clk 0:00:17]} 50. g5 {[%clk 0:00:04]}  Qf5+ {[%clk 0:00:16]} 51. Kh4 {[%clk 0:00:05]}  Be1# {[%clk 0:00:16]} 0-1


[Site "https://www.chess.com"]

[Event "Titled Tuesday Blitz September 27 Early 2022"]
[White "Thiel, Thomas"]
[Black "Player, Edmund C"]
[WhiteFideId "4615964"]
[BlackFideId "406520"]
[WhiteElo "2202"]
[BlackElo "2092"]
[Result "0-1"]
[Round "02"]
[TimeControl "180+1"]
[Date "2022.09.27"]
[WhiteClock "0:01:31"]
[BlackClock "0:01:36"]

1. e4 {[%clk 0:03:00]}  e6 {[%clk 0:02:58]} 2. d4 {[%clk 0:03:00]}  d5 {[%clk 0:02:59]} 3. Nc3 {[%clk 0:02:59]}  Nf6 {[%clk 0:02:57]} 4. Bg5 {[%clk 0:02:57]}  dxe4 {[%clk 0:02:56]} 5. Nxe4 {[%clk 0:02:55]}  Be7 {[%clk 0:02:56]} 6. Bxf6 {[%clk 0:02:55]}  gxf6 {[%clk 0:02:56]} 7. g3 {[%clk 0:02:48]}  b6 {[%clk 0:02:48]} 8. Bg2 {[%clk 0:02:47]}  c6 {[%clk 0:02:47]} 9. Ne2 {[%clk 0:02:45]}  Bb7 {[%clk 0:02:47]} 10. O-O {[%clk 0:02:44]}  Nd7 {[%clk 0:02:47]} 11. Nf4 {[%clk 0:02:43]}  f5 {[%clk 0:02:43]} 12. Nc3 {[%clk 0:02:41]}  Nf6 {[%clk 0:02:43]} 13. Re1 {[%clk 0:02:28]}  Qc7 {[%clk 0:02:40]} 14. d5 {[%clk 0:02:16]}  cxd5 {[%clk 0:02:39]} 15. Nb5 {[%clk 0:01:58]}  Qc5 {[%clk 0:02:33]} 16. Nd4 {[%clk 0:01:54]}  Ne4 {[%clk 0:02:16]} 17. Ndxe6 {[%clk 0:01:47]}  fxe6 {[%clk 0:02:11]} 18. Nxe6 {[%clk 0:01:43]}  Qxf2+ {[%clk 0:02:09]} 19. Kh1 {[%clk 0:01:41]}  Bc5 {[%clk 0:01:41]} 20. Nc7+ {[%clk 0:01:32]}  Kd7 {[%clk 0:01:39]} 21. Nxd5 {[%clk 0:01:31]}  Qg1+ {[%clk 0:01:36]} 0-1


[Site "https://www.chess.com"]

[Event "Titled Tuesday Blitz September 27 Early 2022"]
[White "Timofeev, Artyom"]
[Black "Erenberg, Ariel"]
[WhiteFideId "4140419"]
[BlackFideId "2811634"]
[WhiteElo "2579"]
[BlackElo "2243"]
[Result "1-0"]
[Round "02"]
[TimeControl "180+1"]
[Date "2022.09.27"]
[WhiteClock "0:00:04"]
[BlackClock "0:00:02"]

1. e4 {[%clk 0:03:00]}  e5 {[%clk 0:02:59]} 2. Nf3 {[%clk 0:03:00]}  Nc6 {[%clk 0:02:58]} 3. Bb5 {[%clk 0:03:00]}  a6 {[%clk 0:02:56]} 4. Ba4 {[%clk 0:03:00]}  Nf6 {[%clk 0:02:56]} 5. d3 {[%clk 0:02:59]}  b5 {[%clk 0:02:52]} 6. Bb3 {[%clk 0:02:59]}  Be7 {[%clk 0:02:52]} 7. O-O {[%clk 0:02:58]}  O-O {[%clk 0:02:52]} 8. Re1 {[%clk 0:02:58]}  d6 {[%clk 0:02:49]} 9. c3 {[%clk 0:02:57]}  Na5 {[%clk 0:02:47]} 10. Bc2 {[%clk 0:02:57]}  c5 {[%clk 0:02:48]} 11. Nbd2 {[%clk 0:02:57]}  Qc7 {[%clk 0:02:49]} 12. Nf1 {[%clk 0:02:57]}  Nc6 {[%clk 0:02:49]} 13. Ng3 {[%clk 0:02:54]}  Be6 {[%clk 0:02:50]} 14. h3 {[%clk 0:02:50]}  h6 {[%clk 0:02:48]} 15. Nh4 {[%clk 0:02:40]}  Rfe8 {[%clk 0:02:44]} 16. Nhf5 {[%clk 0:02:39]}  Bf8 {[%clk 0:02:44]} 17. Qf3 {[%clk 0:02:39]}  Nh7 {[%clk 0:02:36]} 18. h4 {[%clk 0:02:37]}  Rad8 {[%clk 0:02:27]} 19. a4 {[%clk 0:02:25]}  d5 {[%clk 0:01:57]} 20. axb5 {[%clk 0:02:24]}  axb5 {[%clk 0:01:57]} 21. Ne3 {[%clk 0:02:18]}  Nd4 {[%clk 0:01:48]} 22. cxd4 {[%clk 0:02:15]}  cxd4 {[%clk 0:01:49]} 23. exd5 {[%clk 0:01:45]}  Bc8 {[%clk 0:01:46]} 24. Bb3 {[%clk 0:01:41]}  dxe3 {[%clk 0:01:45]} 25. Bxe3 {[%clk 0:01:40]}  Nf6 {[%clk 0:01:33]} 26. Ne4 {[%clk 0:01:39]}  Nxd5 {[%clk 0:01:02]} 27. Bxd5 {[%clk 0:01:38]}  Rxd5 {[%clk 0:01:03]} 28. Nf6+ {[%clk 0:01:38]}  gxf6 {[%clk 0:01:04]} 29. Qxd5 {[%clk 0:01:39]}  Be6 {[%clk 0:00:58]} 30. Qf3 {[%clk 0:01:34]}  f5 {[%clk 0:00:56]} 31. Rac1 {[%clk 0:01:22]}  Qd8 {[%clk 0:00:39]} 32. Qg3+ {[%clk 0:01:16]}  Kh7 {[%clk 0:00:37]} 33. Qxe5 {[%clk 0:01:14]}  Qxh4 {[%clk 0:00:26]} 34. Bd4 {[%clk 0:01:08]}  Rd8 {[%clk 0:00:18]} 35. Qh8+ {[%clk 0:00:39]}  Kg6 {[%clk 0:00:17]} 36. Be5 {[%clk 0:00:40]}  f6 {[%clk 0:00:12]} 37. Bg3 {[%clk 0:00:34]}  Qd4 {[%clk 0:00:11]} 38. Rxe6 {[%clk 0:00:22]}  Be7 {[%clk 0:00:12]} 39. Qxd8 {[%clk 0:00:18]}  Qxd8 {[%clk 0:00:10]} 40. d4 {[%clk 0:00:17]}  Bb4 {[%clk 0:00:09]} 41. Rd1 {[%clk 0:00:15]}  Qd5 {[%clk 0:00:09]} 42. Re3 {[%clk 0:00:15]}  Ba5 {[%clk 0:00:07]} 43. Bf4 {[%clk 0:00:15]}  Bb6 {[%clk 0:00:08]} 44. g3 {[%clk 0:00:15]}  b4 {[%clk 0:00:07]} 45. b3 {[%clk 0:00:13]}  Kh5 {[%clk 0:00:07]} 46. Kh2 {[%clk 0:00:12]}  Bd8 {[%clk 0:00:04]} 47. Red3 {[%clk 0:00:10]}  Bb6 {[%clk 0:00:05]} 48. Be3 {[%clk 0:00:10]}  Kg4 {[%clk 0:00:04]} 49. Rf1 {[%clk 0:00:09]}  Bc7 {[%clk 0:00:01]} 50. Bxh6 {[%clk 0:00:06]}  f4 {[%clk 0:00:02]} 51. f3+ {[%clk 0:00:03]}  Kf5 {[%clk 0:00:02]} 52. Bxf4 {[%clk 0:00:03]}  Bxf4 {[%clk 0:00:01]} 53. gxf4 {[%clk 0:00:04]}  Kxf4 {[%clk 0:00:02]} 54. Rfd1 {[%clk 0:00:03]}  Qh5+ {[%clk 0:00:02]} 55. Kg1 {[%clk 0:00:04]}  Qg6+ {[%clk 0:00:02]} 56. Kf1 {[%clk 0:00:05]}  Qg3 {[%clk 0:00:02]} 57. R1d2 {[%clk 0:00:05]}  Qh3+ {[%clk 0:00:02]} 58. Ke2 {[%clk 0:00:05]}  Qg2+ {[%clk 0:00:02]} 59. Kd1 {[%clk 0:00:06]}  Qh1+ {[%clk 0:00:02]} 60. Kc2 {[%clk 0:00:06]}  Qh7 {[%clk 0:00:03]} 61. Rd1 {[%clk 0:00:06]}  Qc7+ {[%clk 0:00:03]} 62. Kb1 {[%clk 0:00:05]}  Qd6 {[%clk 0:00:03]} 63. d5 {[%clk 0:00:06]}  f5 {[%clk 0:00:03]} 64. Kb2 {[%clk 0:00:05]}  Kg5 {[%clk 0:00:03]} 65. Rd4 {[%clk 0:00:05]}  Kf6 {[%clk 0:00:03]} 66. f4 {[%clk 0:00:05]}  Ke7 {[%clk 0:00:03]} 67. Rc4 {[%clk 0:00:05]}  Kd7 {[%clk 0:00:03]} 68. Rd3 {[%clk 0:00:04]}  Qf6+ {[%clk 0:00:03]} 69. Rdd4 {[%clk 0:00:04]}  Qb6 {[%clk 0:00:02]} 70. Rxb4 {[%clk 0:00:04]} 1-0


[Site "https://www.chess.com"]

[Event "Titled Tuesday Blitz September 27 Early 2022"]
[White "Urazayev, Arystanbek"]
[Black "Melikhov, Evgeny V."]
[WhiteFideId "13709810"]
[BlackFideId "4122046"]
[WhiteElo "2441"]
[BlackElo "1963"]
[Result "1-0"]
[Round "02"]
[TimeControl "180+1"]
[Date "2022.09.27"]
[WhiteClock "0:00:49"]
[BlackClock "0:00:13"]

1. e4 {[%clk 0:03:00]}  e5 {[%clk 0:02:55]} 2. Nf3 {[%clk 0:03:01]}  Nc6 {[%clk 0:02:53]} 3. Bc4 {[%clk 0:03:01]}  Nf6 {[%clk 0:02:53]} 4. d3 {[%clk 0:03:00]}  Be7 {[%clk 0:02:52]} 5. Nc3 {[%clk 0:02:59]}  d6 {[%clk 0:02:52]} 6. a4 {[%clk 0:02:59]}  a5 {[%clk 0:02:51]} 7. h3 {[%clk 0:02:54]}  O-O {[%clk 0:02:51]} 8. O-O {[%clk 0:02:54]}  Be6 {[%clk 0:02:50]} 9. Bg5 {[%clk 0:02:46]}  h6 {[%clk 0:02:43]} 10. Bxf6 {[%clk 0:02:46]}  Bxf6 {[%clk 0:02:43]} 11. Nd5 {[%clk 0:02:46]}  Bxd5 {[%clk 0:02:42]} 12. Bxd5 {[%clk 0:02:46]}  Qd7 {[%clk 0:02:41]} 13. c3 {[%clk 0:02:46]}  Rab8 {[%clk 0:02:37]} 14. Nh2 {[%clk 0:02:30]}  Ne7 {[%clk 0:02:36]} 15. Bb3 {[%clk 0:02:30]}  Ng6 {[%clk 0:02:30]} 16. Ng4 {[%clk 0:02:28]}  Bg5 {[%clk 0:02:25]} 17. Ne3 {[%clk 0:02:27]}  Kh7 {[%clk 0:02:13]} 18. Qg4 {[%clk 0:02:15]}  Qxg4 {[%clk 0:02:09]} 19. hxg4 {[%clk 0:02:16]}  Bxe3 {[%clk 0:02:09]} 20. fxe3 {[%clk 0:02:17]}  f6 {[%clk 0:02:05]} 21. Be6 {[%clk 0:02:15]}  Nh8 {[%clk 0:01:59]} 22. b4 {[%clk 0:02:15]}  b6 {[%clk 0:01:54]} 23. Rfb1 {[%clk 0:02:11]}  Ra8 {[%clk 0:01:51]} 24. Bd5 {[%clk 0:02:11]}  Ra7 {[%clk 0:01:51]} 25. b5 {[%clk 0:02:03]}  Nf7 {[%clk 0:01:48]} 26. d4 {[%clk 0:02:03]}  Ng5 {[%clk 0:01:47]} 27. c4 {[%clk 0:02:00]}  Rd8 {[%clk 0:01:30]} 28. c5 {[%clk 0:01:53]}  Rf8 {[%clk 0:01:28]} 29. cxb6 {[%clk 0:01:53]}  cxb6 {[%clk 0:01:28]} 30. Rc1 {[%clk 0:01:54]}  Rb8 {[%clk 0:01:21]} 31. Rc6 {[%clk 0:01:51]}  Rd7 {[%clk 0:01:20]} 32. Rac1 {[%clk 0:01:52]}  exd4 {[%clk 0:01:10]} 33. exd4 {[%clk 0:01:51]}  Re7 {[%clk 0:01:10]} 34. Rc7 {[%clk 0:01:29]}  Rxc7 {[%clk 0:01:06]} 35. Rxc7 {[%clk 0:01:29]}  Re8 {[%clk 0:01:06]} 36. Bc6 {[%clk 0:01:07]}  Rb8 {[%clk 0:00:38]} 37. Rd7 {[%clk 0:01:01]}  Re8 {[%clk 0:00:35]} 38. Rb7 {[%clk 0:00:54]}  Rc8 {[%clk 0:00:16]} 39. Rxb6 {[%clk 0:00:53]}  Rc7 {[%clk 0:00:16]} 40. Bd5 {[%clk 0:00:52]}  Rc1+ {[%clk 0:00:14]} 41. Kh2 {[%clk 0:00:51]}  Ra1 {[%clk 0:00:14]} 42. Rxd6 {[%clk 0:00:48]}  Rxa4 {[%clk 0:00:14]} 43. b6 {[%clk 0:00:49]}  Rxd4 {[%clk 0:00:13]} 44. Bg8+ {[%clk 0:00:49]} 1-0


[Site "https://www.chess.com"]

[Event "Titled Tuesday Blitz September 27 Early 2022"]
[White "Vachylia, Andrii"]
[Black "Barash, Anton"]
[WhiteFideId "14137224"]
[BlackFideId "30935229"]
[WhiteElo "2318"]
[BlackElo "2252"]
[Result "1-0"]
[Round "02"]
[TimeControl "180+1"]
[Date "2022.09.27"]
[WhiteClock "0:01:46"]
[BlackClock "0:00:44"]

1. e4 {[%clk 0:03:00]}  e6 {[%clk 0:02:57]} 2. d4 {[%clk 0:03:00]}  d5 {[%clk 0:02:57]} 3. Nc3 {[%clk 0:02:59]}  Bb4 {[%clk 0:02:57]} 4. e5 {[%clk 0:02:58]}  c5 {[%clk 0:02:58]} 5. a3 {[%clk 0:02:58]}  Bxc3+ {[%clk 0:02:58]} 6. bxc3 {[%clk 0:02:59]}  Ne7 {[%clk 0:02:59]} 7. a4 {[%clk 0:03:00]}  Qa5 {[%clk 0:02:56]} 8. Bd2 {[%clk 0:02:59]}  Nbc6 {[%clk 0:02:56]} 9. Nf3 {[%clk 0:02:59]}  Bd7 {[%clk 0:02:55]} 10. Bd3 {[%clk 0:02:51]}  c4 {[%clk 0:02:55]} 11. Be2 {[%clk 0:02:51]}  O-O-O {[%clk 0:02:56]} 12. O-O {[%clk 0:02:51]}  h6 {[%clk 0:02:48]} 13. h4 {[%clk 0:02:50]}  f6 {[%clk 0:02:42]} 14. exf6 {[%clk 0:02:36]}  gxf6 {[%clk 0:02:43]} 15. Qe1 {[%clk 0:02:32]}  e5 {[%clk 0:01:56]} 16. dxe5 {[%clk 0:02:13]}  fxe5 {[%clk 0:01:45]} 17. Nh2 {[%clk 0:02:10]}  Rdg8 {[%clk 0:01:25]} 18. Kh1 {[%clk 0:01:58]}  Nf5 {[%clk 0:01:18]} 19. g3 {[%clk 0:01:50]}  Qc7 {[%clk 0:00:46]} 20. Bf3 {[%clk 0:01:47]}  e4 {[%clk 0:00:44]} 21. Bg2 {[%clk 0:01:46]} 1-0


[Site "https://www.chess.com"]

[Event "Titled Tuesday Blitz September 27 Early 2022"]
[White "Vovk, Orest"]
[Black "Seo, Jung Min"]
[WhiteFideId "14113490"]
[BlackFideId "1734687"]
[WhiteElo "2203"]
[BlackElo "2455"]
[Result "0-1"]
[Round "02"]
[TimeControl "180+1"]
[Date "2022.09.27"]
[WhiteClock "0:00:20"]
[BlackClock "0:00:48"]

1. h4 {[%clk 0:03:00]}  d5 {[%clk 0:02:58]} 2. h5 {[%clk 0:03:00]}  e5 {[%clk 0:02:57]} 3. h6 {[%clk 0:02:59]}  Nxh6 {[%clk 0:02:56]} 4. d4 {[%clk 0:02:59]}  e4 {[%clk 0:02:45]} 5. Bxh6 {[%clk 0:02:59]}  gxh6 {[%clk 0:02:46]} 6. e3 {[%clk 0:02:59]}  c6 {[%clk 0:02:42]} 7. c4 {[%clk 0:02:59]}  Be6 {[%clk 0:02:41]} 8. Qb3 {[%clk 0:02:58]}  Qb6 {[%clk 0:02:28]} 9. Nc3 {[%clk 0:02:54]}  Qxb3 {[%clk 0:02:27]} 10. axb3 {[%clk 0:02:53]}  Nd7 {[%clk 0:02:25]} 11. Nge2 {[%clk 0:02:44]}  dxc4 {[%clk 0:02:19]} 12. Nf4 {[%clk 0:02:44]}  cxb3 {[%clk 0:02:17]} 13. Nxe6 {[%clk 0:02:43]}  fxe6 {[%clk 0:02:17]} 14. Bc4 {[%clk 0:02:41]}  e5 {[%clk 0:02:13]} 15. Rh4 {[%clk 0:02:32]}  exd4 {[%clk 0:02:03]} 16. Rxe4+ {[%clk 0:02:31]}  Kd8 {[%clk 0:02:04]} 17. Rxd4 {[%clk 0:02:25]}  Bg7 {[%clk 0:02:03]} 18. Rd3 {[%clk 0:02:21]}  Kc7 {[%clk 0:02:03]} 19. Bxb3 {[%clk 0:02:20]}  Nc5 {[%clk 0:02:01]} 20. Bc2 {[%clk 0:02:16]}  Nxd3+ {[%clk 0:02:00]} 21. Bxd3 {[%clk 0:02:17]}  b5 {[%clk 0:01:51]} 22. O-O-O {[%clk 0:01:50]}  Bxc3 {[%clk 0:01:48]} 23. bxc3 {[%clk 0:01:50]}  Rad8 {[%clk 0:01:48]} 24. Kc2 {[%clk 0:01:49]}  a5 {[%clk 0:01:48]} 25. Rh1 {[%clk 0:01:48]}  Rd6 {[%clk 0:01:48]} 26. e4 {[%clk 0:01:38]}  Rg6 {[%clk 0:01:42]} 27. g3 {[%clk 0:01:35]}  Rf8 {[%clk 0:01:42]} 28. Rh2 {[%clk 0:01:29]}  a4 {[%clk 0:01:33]} 29. e5 {[%clk 0:01:26]}  Rg5 {[%clk 0:01:33]} 30. f4 {[%clk 0:01:26]}  Rxg3 {[%clk 0:01:32]} 31. f5 {[%clk 0:01:27]}  Re3 {[%clk 0:01:25]} 32. e6 {[%clk 0:01:24]}  Rxd3 {[%clk 0:01:18]} 33. Kxd3 {[%clk 0:01:04]}  Rxf5 {[%clk 0:01:18]} 34. Rxh6 {[%clk 0:01:04]}  Kd6 {[%clk 0:01:15]} 35. e7+ {[%clk 0:01:02]}  Kxe7 {[%clk 0:01:15]} 36. Rxc6 {[%clk 0:01:01]}  h5 {[%clk 0:01:14]} 37. Rb6 {[%clk 0:00:48]}  Kd7 {[%clk 0:01:09]} 38. c4 {[%clk 0:00:46]}  Kc7 {[%clk 0:01:07]} 39. Ra6 {[%clk 0:00:42]}  bxc4+ {[%clk 0:00:59]} 40. Kxc4 {[%clk 0:00:41]}  h4 {[%clk 0:00:52]} 41. Rh6 {[%clk 0:00:33]}  Rf4+ {[%clk 0:00:52]} 42. Kc3 {[%clk 0:00:32]}  Kd7 {[%clk 0:00:52]} 43. Kb2 {[%clk 0:00:32]}  Ke7 {[%clk 0:00:52]} 44. Ka3 {[%clk 0:00:27]}  Kf7 {[%clk 0:00:52]} 45. Rh5 {[%clk 0:00:28]}  Kg6 {[%clk 0:00:51]} 46. Rh8 {[%clk 0:00:27]}  Kg5 {[%clk 0:00:51]} 47. Rg8+ {[%clk 0:00:28]}  Kf5 {[%clk 0:00:50]} 48. Rh8 {[%clk 0:00:23]}  Kg4 {[%clk 0:00:50]} 49. Rg8+ {[%clk 0:00:23]}  Kf3 {[%clk 0:00:50]} 50. Rh8 {[%clk 0:00:23]}  Kg3 {[%clk 0:00:51]} 51. Rg8+ {[%clk 0:00:23]}  Rg4 {[%clk 0:00:51]} 52. Rc8 {[%clk 0:00:22]}  h3 {[%clk 0:00:51]} 53. Rc3+ {[%clk 0:00:22]}  Kh4 {[%clk 0:00:51]} 54. Rc2 {[%clk 0:00:22]}  Rf4 {[%clk 0:00:48]} 55. Rd2 {[%clk 0:00:20]}  Kg3 {[%clk 0:00:48]} 0-1


[Site "https://www.chess.com"]

[Event "Titled Tuesday Blitz September 27 Early 2022"]
[White "Wagner, Dennis"]
[Black "Ozates, Tuna"]
[WhiteFideId "24650684"]
[BlackFideId "6354521"]
[WhiteElo "2355"]
[BlackElo "1887"]
[Result "0-1"]
[Round "02"]
[TimeControl "180+1"]
[Date "2022.09.27"]
[WhiteClock "0:00:01"]
[BlackClock "0:00:38"]

1. e4 {[%clk 0:03:00]}  Nf6 {[%clk 0:02:56]} 2. e5 {[%clk 0:02:59]}  Nd5 {[%clk 0:02:57]} 3. d4 {[%clk 0:03:00]}  d6 {[%clk 0:02:57]} 4. c4 {[%clk 0:03:00]}  Nb6 {[%clk 0:02:57]} 5. exd6 {[%clk 0:03:00]}  exd6 {[%clk 0:02:57]} 6. Bd3 {[%clk 0:03:00]}  Be7 {[%clk 0:02:58]} 7. Ne2 {[%clk 0:03:00]}  Bg4 {[%clk 0:02:53]} 8. Nbc3 {[%clk 0:02:59]}  O-O {[%clk 0:02:52]} 9. O-O {[%clk 0:02:58]}  Nc6 {[%clk 0:02:51]} 10. Be3 {[%clk 0:02:58]}  Bf6 {[%clk 0:02:51]} 11. f3 {[%clk 0:02:53]}  Bh5 {[%clk 0:02:51]} 12. Qd2 {[%clk 0:02:47]}  Bg6 {[%clk 0:02:50]} 13. Be4 {[%clk 0:02:43]}  Nxc4 {[%clk 0:02:47]} 14. Qd3 {[%clk 0:02:41]}  Nxe3 {[%clk 0:02:35]} 15. Qxe3 {[%clk 0:02:42]}  Re8 {[%clk 0:02:32]} 16. Nd5 {[%clk 0:02:41]}  Bg5 {[%clk 0:02:22]} 17. Qf2 {[%clk 0:02:21]}  f5 {[%clk 0:02:20]} 18. Bc2 {[%clk 0:02:15]}  Bf7 {[%clk 0:02:15]} 19. Bb3 {[%clk 0:01:55]}  Na5 {[%clk 0:02:01]} 20. Nec3 {[%clk 0:01:36]}  Nxb3 {[%clk 0:01:57]} 21. axb3 {[%clk 0:01:37]}  c6 {[%clk 0:01:52]} 22. f4 {[%clk 0:01:36]}  Bh4 {[%clk 0:01:45]} 23. g3 {[%clk 0:01:32]}  Bxd5 {[%clk 0:01:25]} 24. Nxd5 {[%clk 0:01:31]}  Bxg3 {[%clk 0:01:19]} 25. hxg3 {[%clk 0:00:58]}  cxd5 {[%clk 0:01:19]} 26. Ra4 {[%clk 0:00:51]}  Re4 {[%clk 0:01:17]} 27. Rfa1 {[%clk 0:00:51]}  Qb6 {[%clk 0:01:15]} 28. R1a3 {[%clk 0:00:09]}  a6 {[%clk 0:01:14]} 29. Kh2 {[%clk 0:00:09]}  Rae8 {[%clk 0:01:10]} 30. Kh3 {[%clk 0:00:09]}  Re2 {[%clk 0:01:03]} 31. Qf3 {[%clk 0:00:09]}  R8e6 {[%clk 0:00:58]} 32. Qxd5 {[%clk 0:00:03]}  Kh8 {[%clk 0:00:41]} 33. Kh4 {[%clk 0:00:02]}  Qd8+ {[%clk 0:00:38]} 34. Kh5 {[%clk 0:00:01]}  Rh6# {[%clk 0:00:38]} 0-1


[Site "https://www.chess.com"]